bitfinex/quotes_ETHUSD_20251018
["timestamp","ask_amount","ask_price","bid_price","bid_amount"]
[1760806301675,0.0878,3866.8,3866.7,6.5749846]
[1760806302580,0.002,3866.8,3866.7,6.5749846]
[1760806306979,0.002,3866.8,3866.7,7.99964264]
[1760806307290,0.002,3866.8,3866.7,7.53734264]
[1760806307495,0.002,3866.8,3866.7,6.5749846]
[1760806309068,0.0878,3866.8,3866.7,6.5749846]
[1760806309601,0.002,3866.8,3866.7,6.5749846]
[1760806310095,0.002,3866.8,3866.7,3.86]
[1760806310303,0.0878,3866.8,3866.7,3.86]
[1760806311800,0.002,3866.8,3866.7,3.86]
[1760806312701,0.0878,3866.8,3866.7,3.86]
[1760806313297,0.002,3866.8,3866.7,3.86]
[1760806313611,0.002,3866.8,3866.5,3.86]
[1760806316915,0.002,3866.8,3866.5,6.44627813]
[1760806317226,0.002,3866.8,3866.6,0.1288]
[1760806319406,0.002,3866.8,3866.7,3.86]
[1760806319927,0.04707502,3866.8,3866.7,3.86]
[1760806326725,0.13287502,3866.8,3866.7,3.86]
[1760806327822,0.04707502,3866.8,3866.7,3.86]
[1760806328438,0.04707502,3866.8,3866.7,4.3177]
[1760806328920,0.04707502,3866.8,3866.7,3.86]
[1760806329119,0.04707502,3866.8,3866.7,7.0326846]
[1760806330531,0.04707502,3866.8,3866.7,4.4465]
[1760806331639,0.04707502,3866.8,3866.7,3.9888]
[1760806331815,0.04707502,3866.8,3866.7,3.86]
[1760806333100,0.04707502,3866.8,3866.4,0.1298]
[1760806337139,0.04707502,3866.8,3866.4,0.5875]
[1760806338039,0.04707502,3866.8,3866.4,0.1298]
[1760806343043,0.04707502,3866.8,3866.5,3.86]
[1760806343339,0.04707502,3866.8,3866.5,4.3177]
[1760806344940,0.04707502,3866.8,3866.6,0.4577]
[1760806345958,0.04707502,3866.8,3866.7,0.4577]
[1760806346453,0.04707502,3866.8,3866.7,0.5865]
[1760806348122,0.04707502,3866.8,3866.7,0.1288]
[1760806348325,0.04707502,3866.8,3866.5,3.86]
[1760806348816,0.04707502,3866.8,3866.6,4.3177]
[1760806349016,0.04707502,3866.8,3866.7,0.4577]
[1760806349255,0.04707502,3866.8,3866.7,1.03125]
[1760806349466,0.04707502,3866.8,3866.7,0.1288]
[1760806349632,0.04707502,3866.8,3866.6,3.86]
[1760806352251,0.04707502,3866.8,3866.7,0.4577]
[1760806352468,0.002,3867.2,3866.7,0.48356184]
[1760806352620,0.002,3867.2,3867.1,0.2213]
[1760806352822,0.002,3867.2,3866.8,0.4577]
[1760806353056,0.002,3867.2,3866.9,0.4577]
[1760806353602,0.002,3867.2,3866.9,2.58604034]
[1760806353723,0.002,3867.2,3867.0,0.4577]
[1760806354084,0.002,3867.2,3867.0,3.04363859]
[1760806354284,0.002,3867.2,3867.1,2.58591709]
[1760806354426,0.002,3867.2,3867.1,3.04041709]
[1760806354631,0.002,3867.2,3867.1,2.58591709]
[1760806354927,0.002,3867.2,3867.1,3.04041709]
[1760806355638,0.002,3867.2,3867.1,0.4545]
[1760806357558,0.002,3867.2,3867.1,3.04041709]
[1760806357856,0.002,3867.2,3867.1,3.67102471]
[1760806358058,7.47829598,3868.2,3867.1,3.67102471]
[1760806358059,0.40555463,3869.3,3867.5,2.729]
[1760806358238,0.09999999,3873.6,3867.5,2.729]
[1760806358239,0.0898,3870.5,3869.2,0.2208]
[1760806358437,0.04505989,3870.3,3869.3,1.07291637]
[1760806358669,0.04505989,3870.3,3869.4,2.58438]
[1760806358868,0.04505989,3870.3,3869.4,4.08595191]
[1760806359182,0.04505989,3870.3,3869.9,2.58404609]
[1760806359786,0.04505989,3870.3,3869.9,3.14215598]
[1760806361377,0.0898,3870.5,3869.9,3.14215598]
[1760806361769,0.49506093,3871.1,3869.9,3.14215598]
[1760806361937,0.0898,3870.8,3869.9,3.14215598]
[1760806362433,0.1288,3870.5,3869.9,3.27095598]
[1760806362831,0.1288,3870.5,3869.9,0.68690989]
[1760806363031,0.1288,3870.5,3869.9,0.23240989]
[1760806363468,0.0898,3870.4,3869.3,0.4545]
[1760806363783,0.1288,3870.3,3869.7,0.1288]
[1760806364341,0.17383613,3870.3,3869.7,0.1288]
[1760806365379,0.1288,3870.3,3869.7,0.1288]
[1760806365876,0.1288,3870.3,3869.7,2.71296064]
[1760806366075,0.1288,3870.3,3869.9,2.58404609]
[1760806366433,0.1288,3870.3,3869.9,0.4545]
[1760806367090,0.1288,3870.3,3869.8,2.58411225]
[1760806367252,0.1288,3870.3,3869.8,3.03861225]
[1760806367944,0.1288,3870.3,3869.8,2.58411225]
[1760806368170,0.1288,3870.3,3869.8,3.03861225]
[1760806368475,0.17383416,3870.3,3869.8,3.03861225]
[1760806369444,0.17383416,3870.3,3869.9,0.4545]
[1760806372303,0.04503416,3870.3,3869.9,3.61371051]
[1760806372505,0.04503416,3870.3,3869.9,3.74251051]
[1760806373309,0.04503416,3870.3,3869.9,3.84611343]
[1760806374000,0.04503416,3870.3,3869.9,0.80756734]
[1760806374182,0.04503416,3870.3,3869.9,3.27094901]
[1760806375580,0.04503416,3870.3,3869.9,7.13094901]
[1760806375781,0.002,3870.4,3869.9,7.13094901]
[1760806376318,0.002,3870.4,3869.9,4.09240292]
[1760806376521,0.002,3870.4,3869.9,6.57284609]
[1760806376819,0.002,3870.4,3869.9,2.71284609]
[1760806377117,0.002,3870.4,3869.9,3.16734609]
[1760806377291,0.002,3870.4,3869.9,3.75285859]
[1760806380534,0.002,3870.4,3869.9,3.29835859]
[1760806380939,0.002,3870.4,3869.9,3.75285859]
[1760806382198,0.04703172,3870.4,3869.9,3.75285859]
[1760806383336,0.04703172,3870.4,3869.9,3.77869905]
[1760806383544,0.04703172,3870.4,3869.9,3.75285859]
[1760806396183,0.04703172,3870.4,3869.9,3.29835859]
[1760806396382,0.13683172,3870.4,3869.9,6.57284609]
[1760806397554,0.04703172,3870.4,3869.9,6.57284609]
[1760806405578,0.04703172,3870.4,3869.9,2.71284609]
[1760806406149,0.13683172,3870.4,3869.9,0.1288]
[1760806406554,0.13683172,3870.4,3869.9,2.71284609]
[1760806407682,0.13683172,3870.4,3869.9,0.1288]
[1760806408476,0.13683172,3870.4,3869.9,2.71284609]
[1760806409187,0.13683172,3870.4,3869.9,0.1288]
[1760806409353,0.26563172,3870.4,3869.7,0.1288]
[1760806409558,0.26563172,3870.4,3869.7,2.71297333]
[1760806410491,0.26563172,3870.4,3869.9,2.58404609]
[1760806412992,0.17583172,3870.4,3869.9,3.01524609]
[1760806413171,0.26563172,3870.4,3869.9,2.58404609]
[1760806415861,0.26563172,3870.4,3869.9,6.44404609]
[1760806416793,0.17583172,3870.4,3869.9,3.86]
[1760806416991,0.1288,3869.9,3869.5,3.86]
[1760806417404,0.2186,3869.9,3869.5,3.86]
[1760806419905,0.1288,3869.9,3869.3,2.58443873]
[1760806420113,0.04703817,3870.0,3869.2,2.58449939]
[1760806420114,0.1288,3869.7,3869.2,2.58449939]
[1760806420288,0.2186,3869.7,3869.2,2.58449939]
[1760806420818,0.04503848,3869.6,3869.2,2.58449939]
[1760806421210,0.04503848,3869.6,3869.3,2.58443101]
[1760806422644,0.04503848,3869.6,3869.2,2.58450664]
[1760806422795,0.04503848,3869.6,3869.3,2.58442766]
[1760806424007,0.04503848,3869.6,3869.2,2.58450733]
[1760806424826,0.04503848,3869.6,3869.2,3.05017064]
[1760806425225,0.04503848,3869.6,3869.4,2.58437079]
[1760806426129,0.04503848,3869.6,3869.5,3.05001321]
[1760806430941,0.04503848,3869.6,3869.5,0.4657]
[1760806434953,0.04503848,3869.6,3869.4,2.58436753]
[1760806435245,0.04503848,3869.6,3869.4,3.05006753]
[1760806436016,0.04503848,3869.6,3869.5,2.58431321]
[1760806436217,0.04503848,3869.6,3869.5,3.05001321]
[1760806437146,0.04503848,3869.6,3869.5,0.4657]
[1760806437682,0.04503848,3869.6,3869.4,2.58437101]
[1760806438014,0.04503848,3869.6,3869.4,3.05007101]
[1760806440253,0.04503848,3869.6,3869.5,0.4657]
[1760806440564,0.04503848,3869.6,3869.5,3.07585634]
[1760806440719,0.04503848,3869.6,3869.5,3.35759884]
[1760806440919,0.002,3870.0,3869.9,2.58404609]
[1760806441360,0.002,3870.0,3869.9,3.04974609]
[1760806445963,0.002,3870.0,3869.9,3.17854609]
[1760806450267,0.002,3870.0,3869.9,3.20438655]
[1760806450469,0.002,3870.0,3869.9,3.78323794]
[1760806451355,0.002,3870.0,3869.9,3.29169748]
[1760806451559,0.002,3870.0,3869.9,0.1288]
[1760806451746,0.002,3870.0,3869.9,3.18044609]
[1760806456180,0.002,3870.0,3869.9,0.1288]
[1760806456338,0.002,3870.0,3869.5,2.58425311]
[1760806456545,0.002,3870.0,3869.6,2.71300064]
[1760806456750,0.002,3870.0,3869.6,0.1288]
[1760806457282,0.0898,3869.9,3869.6,0.1288]
[1760806457639,0.002,3870.0,3869.6,0.1288]
[1760806457846,0.0918,3870.0,3869.6,0.1288]
[1760806459293,0.002,3870.0,3869.6,0.1288]
[1760806459445,0.002,3870.0,3869.7,0.4676]
[1760806460376,0.002,3870.0,3869.8,3.05171287]
[1760806460556,0.002,3870.0,3869.9,2.58404609]
[1760806460760,0.002,3870.0,3869.9,3.05164609]
[1760806461156,0.002,3870.0,3869.9,3.60251543]
[1760806461645,0.002,3870.0,3869.9,3.70612183]
[1760806463880,0.002,3870.0,3869.9,3.73196229]
[1760806464791,0.002,3870.0,3869.9,3.70612183]
[1760806465483,0.002,3870.0,3869.9,3.73196229]
[1760806468059,0.002,3870.0,3869.9,3.70612183]
[1760806472890,0.002,3870.0,3869.9,3.23852183]
[1760806473068,0.002,3870.0,3869.9,3.70612183]
[1760806473270,0.002,3870.0,3869.9,6.09356229]
[1760806473464,0.002,3870.0,3869.9,5.93892183]
[1760806477496,1e-08,3870.1,3870.0,4.94557932]
[1760806477682,1e-08,3870.1,3870.0,7.07531151]
[1760806477864,1e-08,3870.1,3870.0,7.53531151]
[1760806478195,1e-08,3870.1,3870.0,7.6388766]
[1760806482290,0.59851968,3872.8,3870.1,14.991857]
[1760806482491,0.0898,3872.8,3872.7,4.3101778]
[1760806482921,0.0898,3872.8,3872.7,5.08660244]
[1760806483222,0.28059836,3874.6,3872.7,5.08660244]
[1760806483223,1.728,3874.6,3872.8,2.3616]
[1760806483397,0.1288,3874.2,3873.2,2.58178884]
[1760806483720,4.822519,3874.5,3873.1,2.58190122]
[1760806483923,0.1288,3873.9,3873.2,0.1288]
[1760806484096,0.1288,3873.9,3873.3,0.7763945]
[1760806484297,0.1288,3873.9,3873.2,0.1288]
[1760806485520,0.04499792,3873.8,3873.2,0.1288]
[1760806489738,2.58155687,3873.7,3872.9,0.77642062]
[1760806489944,0.1288,3873.5,3872.9,0.1288]
[1760806490262,2.58164157,3873.6,3872.5,0.77646684]
[1760806490437,0.1288,3873.2,3872.6,0.1288]
[1760806491547,2.58182409,3873.3,3872.0,2.58258623]
[1760806491741,2.58182409,3873.3,3872.2,0.1288]
[1760806491742,0.1288,3872.9,3872.2,0.1288]
[1760806495442,0.1288,3872.9,3872.3,3.86]
[1760806495644,2.5821626,3872.8,3872.3,3.86]
[1760806495845,0.1288,3872.5,3872.2,3.86]
[1760806498841,0.17381088,3872.5,3872.2,3.86]
[1760806501959,1.77301088,3872.5,3872.2,3.86]
[1760806502162,0.43552987,3872.4,3872.2,3.86]
[1760806502474,0.04501088,3872.5,3872.2,3.86]
[1760806502676,0.1288,3872.4,3872.2,4.32]
[1760806502848,0.1288,3872.4,3872.3,0.46]
[1760806503044,0.04501088,3872.5,3872.3,0.46]
[1760806503361,0.04501088,3872.5,3872.4,0.46]
[1760806504673,0.04501088,3872.5,3872.2,3.86]
[1760806504875,0.04501088,3872.5,3872.2,4.3305]
[1760806505082,0.04501088,3872.5,3872.2,3.86]
[1760806505257,0.19018109,3872.4,3872.2,4.3305]
[1760806505767,0.17381088,3872.5,3872.2,4.3305]
[1760806505966,0.17381088,3872.5,3872.3,0.4705]
[1760806506282,0.17381088,3872.5,3872.2,3.86]
[1760806508449,1.90181088,3872.5,3872.2,3.86]
[1760806508779,0.17381088,3872.5,3872.2,3.86]
[1760806508985,0.62221778,3872.5,3872.2,3.86]
[1760806509185,0.17381088,3872.5,3872.2,3.86]
[1760806509659,0.17381088,3872.5,3872.3,0.4637]
[1760806509860,0.17381088,3872.5,3872.2,3.86]
[1760806510067,0.17381088,3872.5,3872.4,0.4637]
[1760806511798,0.04501088,3872.5,3872.4,0.4637]
[1760806514390,3.35838729,3873.3,3872.4,0.4637]
[1760806514702,0.33583873,3873.2,3872.4,4.3237]
[1760806514862,0.33583873,3873.2,3872.5,0.4637]
[1760806515462,0.6336,3873.5,3872.5,0.4637]
[1760806515958,2.5817987,3873.3,3872.5,0.4637]
[1760806516162,4.30975638,3873.4,3872.5,0.4637]
[1760806516362,1.728,3873.2,3872.5,0.4637]
[1760806516998,2.58186135,3873.2,3872.4,3.861]
[1760806517303,2.15898614,3873.1,3872.4,3.861]
[1760806517464,2.15898614,3873.1,3872.5,3.86]
[1760806517880,0.04500801,3873.0,3872.5,3.86]
[1760806518394,0.04500801,3873.0,3872.5,4.3237]
[1760806519514,0.04500801,3873.0,3872.5,3.86]
[1760806519814,0.22039942,3872.9,3872.5,3.86]
[1760806521201,0.22039942,3872.9,3872.5,4.3237]
[1760806521404,0.22039942,3872.9,3872.6,0.4637]
[1760806521580,0.04500801,3873.0,3872.7,0.4637]
[1760806521768,0.1288,3872.9,3872.7,0.4637]
[1760806521968,0.1288,3872.9,3872.5,3.86]
[1760806522168,0.1288,3872.9,3872.6,0.4637]
[1760806522771,0.1288,3872.9,3872.5,3.86]
[1760806522998,0.1288,3872.9,3872.5,4.3237]
[1760806524097,0.1288,3872.9,3872.6,0.4637]
[1760806524320,0.57716625,3872.9,3872.5,3.86]
[1760806525099,0.57716625,3872.9,3872.5,4.3237]
[1760806525315,0.57716625,3872.9,3872.5,3.86]
[1760806525504,0.57716625,3872.9,3872.6,0.4637]
[1760806526502,0.57716625,3872.9,3872.5,3.86]
[1760806526806,0.1288,3872.9,3872.7,0.4637]
[1760806527999,0.1288,3872.9,3872.5,3.86]
[1760806528180,0.1288,3872.9,3872.6,0.4637]
[1760806529197,0.1288,3872.9,3872.5,3.86]
[1760806530088,1.8568,3872.9,3872.5,3.86]
[1760806530293,0.44837966,3872.8,3872.5,3.86]
[1760806531008,0.1288,3872.9,3872.5,4.3237]
[1760806532587,1.728,3872.8,3872.5,3.86]
[1760806533322,1.728,3872.8,3872.5,3.861]
[1760806533504,4.31011468,3872.8,3872.5,3.861]
[1760806535106,4.31011468,3872.8,3872.5,4.2887]
[1760806535334,4.31011468,3872.8,3872.5,0.4287]
[1760806535488,4.31011468,3872.8,3872.5,0.001]
[1760806535691,4.94384448,3872.6,3872.5,0.001]
[1760806538722,1.728,3872.6,3872.5,0.001]
[1760806538884,1.728,3872.6,3872.5,0.4287]
[1760806540241,1.8568,3872.6,3872.5,0.4287]
[1760806540913,1.728,3872.6,3872.5,0.4287]
[1760806542239,0.1288,3872.8,3872.5,0.001]
[1760806542442,0.1288,3872.8,3872.5,0.4287]
[1760806542811,0.1288,3872.8,3872.5,0.001]
[1760806543007,0.1288,3872.7,3872.5,0.001]
[1760806543215,0.04701213,3872.9,3872.6,0.4277]
[1760806543412,0.04701213,3872.9,3872.5,0.001]
[1760806543413,0.17581213,3872.9,3872.7,0.4277]
[1760806543615,0.17581213,3872.9,3872.8,0.4277]
[1760806548634,0.04701213,3872.9,3872.8,7.29868113]
[1760806548817,0.04701213,3872.9,3872.8,4.84537]
[1760806549150,0.04701213,3872.9,3872.8,7.42748113]
[1760806549350,0.002,3872.9,3872.8,7.42748113]
[1760806551118,0.002,3872.9,3872.8,4.84537]
[1760806553949,0.002,3872.9,3872.8,7.42748113]
[1760806558868,0.002,3872.9,3872.8,4.84537]
[1760806559369,0.002,3872.9,3872.8,7.42748113]
[1760806563767,0.002,3872.9,3872.8,4.84537]
[1760806563970,0.002,3872.9,3872.8,7.42748113]
[1760806564664,0.002,3872.9,3872.8,4.84537]
[1760806565441,0.002,3872.9,3872.8,7.42748113]
[1760806567770,0.002,3872.9,3872.8,4.41767]
[1760806568062,0.002,3872.9,3872.8,3.9888]
[1760806568476,0.002,3872.9,3872.8,4.4353]
[1760806569162,0.002,3872.9,3872.8,6.88861113]
[1760806571167,0.002,3872.9,3872.8,6.88961113]
[1760806578593,0.002,3872.9,3872.8,6.44311113]
[1760806578798,0.002,3872.9,3872.8,7.9837416]
[1760806579177,0.002,3872.9,3872.8,8.1125416]
[1760806579580,0.002,3872.9,3872.8,8.5590416]
[1760806579772,0.04499855,3873.7,3873.3,3.858]
[1760806579970,0.1288,3874.6,3873.5,2.5816445]
[1760806580276,0.04499608,3874.2,3873.6,6.43957346]
[1760806580670,2.5807826,3874.8,3873.6,6.43957346]
[1760806580899,3.21431748,3874.9,3873.7,2.58149913]
[1760806581202,3.21431748,3874.9,3873.7,6.43949913]
[1760806581387,2.58079318,3874.8,3873.7,6.43949913]
[1760806581701,2.58079318,3874.8,3873.7,3.858]
[1760806582000,1.728,3874.6,3873.7,3.858]
[1760806582395,0.6336,3874.9,3873.9,2.58133591]
[1760806582588,2.13288516,3875.0,3874.0,2.5812936]
[1760806583489,2.13288516,3875.0,3874.1,2.60704281]
[1760806583802,1.728,3875.0,3874.1,0.02581244]
[1760806583966,0.04499376,3874.8,3874.2,2.58117804]
[1760806584170,0.04499376,3874.8,3874.2,0.6836]
[1760806584605,0.04499376,3874.8,3874.4,2.58104455]
[1760806585195,0.04499376,3874.8,3874.4,3.02754455]
[1760806585399,0.04499376,3874.8,3874.4,0.4465]
[1760806588014,0.04499376,3874.8,3874.4,2.58101942]
[1760806588202,0.04499376,3874.8,3874.5,0.4465]
[1760806588406,0.40480476,3875.3,3874.5,0.4465]
[1760806589011,0.40480476,3875.3,3874.5,3.02747512]
[1760806589507,0.40480476,3875.3,3874.5,0.4465]
[1760806589811,0.1288,3875.2,3874.5,0.5753]
[1760806590010,0.1288,3875.2,3874.5,3.15627123]
[1760806590177,4.415434,3876.2,3874.6,0.47230911]
[1760806590377,0.6336,3876.1,3874.7,0.02580844]
[1760806590606,0.6336,3876.1,3874.6,0.4465]
[1760806590607,4.382443,3876.2,3875.1,2.58052801]
[1760806590811,5.10838803,3876.3,3875.1,3.26412801]
[1760806591015,5.10838803,3876.3,3875.2,2.58050788]
[1760806591181,5.33369748,3876.3,3875.2,2.58050788]
[1760806591383,0.002,3875.6,3875.2,2.58050788]
[1760806591710,0.002,3875.6,3875.3,3.02694175]
[1760806592106,0.002,3875.6,3875.3,0.4465]
[1760806592614,0.002,3875.6,3875.3,3.02694448]
[1760806592815,0.002,3875.6,3875.4,0.4465]
[1760806593001,0.04697539,3875.6,3875.4,0.4465]
[1760806593909,0.04697539,3875.6,3875.5,3.02681221]
[1760806594812,0.002,3875.6,3875.5,3.58753694]
[1760806595109,0.002,3875.6,3874.8,2.58077738]
[1760806595478,0.002,3875.6,3874.9,2.58070013]
[1760806595682,0.002,3875.6,3875.0,2.58063671]
[1760806595908,0.002,3875.6,3875.1,0.02580578]
[1760806596093,0.002,3875.6,3875.1,3.27977856]
[1760806596292,0.002,3875.6,3875.2,3.63375757]
[1760806596498,0.002,3875.6,3875.3,2.58044427]
[1760806596805,0.002,3875.6,3875.3,3.04764538]
[1760806596988,0.002,3875.6,3875.3,0.4672]
[1760806597192,0.002,3875.6,3875.5,7.28393154]
[1760806597489,2.724,3880.1,3875.5,1.09433783]
[1760806597490,0.002,3876.5,3875.5,1.09433783]
[1760806597704,0.002,3876.5,3875.5,2.5802625]
[1760806597900,0.002,3876.5,3875.6,2.58023014]
[1760806598612,0.002,3876.5,3875.7,2.58017482]
[1760806599223,4.70361933,3876.7,3875.7,2.58017482]
[1760806599378,1.728,3876.6,3875.4,0.77587444]
[1760806599584,0.0449706,3876.4,3875.3,0.4672]
[1760806599780,0.0449706,3876.4,3875.5,2.58029597]
[1760806599984,0.0449706,3876.4,3875.6,2.58024457]
[1760806600193,0.1288,3876.3,3875.7,0.1288]
[1760806602088,0.1288,3876.3,3875.8,2.58008213]
[1760806602316,0.0449706,3876.4,3875.9,0.596]
[1760806602895,0.0449706,3876.4,3875.9,0.1288]
[1760806603098,0.1308,3876.3,3875.5,0.4672]
[1760806603304,0.1308,3876.3,3875.7,0.1288]
[1760806603507,0.1288,3876.3,3875.7,0.1288]
[1760806604018,2.62473809,3876.4,3874.9,2.58070999]
[1760806604219,2.62473809,3876.4,3875.4,0.1288]
[1760806604220,0.1288,3876.0,3875.4,0.1288]
[1760806605120,0.04497361,3875.9,3875.4,0.1288]
[1760806607534,0.04497361,3875.9,3875.1,0.6992]
[1760806607698,0.1288,3875.7,3875.1,0.828]
[1760806608027,0.1288,3875.7,3875.1,3.40857612]
[1760806608326,0.1288,3875.7,3875.1,0.1288]
[1760806609095,1.8568,3875.3,3874.9,0.001]
[1760806610807,0.1288,3875.3,3874.9,0.001]
[1760806611202,0.1288,3875.3,3874.9,0.4682]
[1760806611402,0.1288,3875.3,3874.9,0.001]
[1760806611603,2.3616,3875.4,3874.9,0.001]
[1760806611803,0.1288,3875.0,3874.9,0.001]
[1760806612549,0.1288,3875.0,3874.9,0.4682]
[1760806612847,0.17378138,3875.0,3874.9,0.4682]
[1760806613046,0.04498138,3875.0,3874.9,0.4682]
[1760806620058,0.04498138,3875.0,3874.9,0.49400711]
[1760806620230,0.04498138,3875.0,3874.9,1.29029169]
[1760806620567,0.04498138,3875.0,3874.9,3.87100345]
[1760806624161,0.04498138,3875.0,3874.9,7.75481056]
[1760806624457,0.1288,3875.8,3875.3,2.5803854]
[1760806624759,0.17377445,3875.8,3875.4,2.58037721]
[1760806624966,0.17377445,3875.8,3875.5,3.88380312]
[1760806624967,0.1288,3875.8,3875.5,3.88380312]
[1760806625257,0.002,3875.9,3875.6,6.43824015]
[1760806625492,0.002,3875.9,3875.6,7.03684015]
[1760806625756,0.002,3875.9,3875.7,3.04996437]
[1760806625935,0.002,3875.9,3875.8,2.58011249]
[1760806626254,0.002,3875.9,3875.8,3.03691249]
[1760806627526,0.002,3875.9,3875.8,4.09162324]
[1760806627726,0.002,3875.9,3875.8,4.22042324]
[1760806629057,0.002,3875.9,3875.8,0.1288]
[1760806629279,0.002,3875.9,3875.8,3.16571249]
[1760806630987,0.002,3875.9,3875.8,0.1288]
[1760806631162,0.002,3875.9,3875.8,0.5856]
[1760806632092,0.002,3875.9,3875.8,3.16571249]
[1760806632249,0.002,3875.9,3875.8,3.88096374]
[1760806632952,0.002,3875.9,3875.8,5.15885125]
[1760806633381,0.002,3875.9,3875.8,7.73896374]
[1760806641120,0.002,3875.9,3875.8,7.28216374]
[1760806641403,0.002,3875.9,3875.8,4.70205125]
[1760806641607,0.002,3875.9,3875.8,3.9868]
[1760806643177,0.002,3875.9,3875.8,3.858]
[1760806643614,0.002,3875.9,3875.8,3.8130303]
[1760806643783,0.004,3875.9,3875.8,3.8130303]
[1760806644923,0.004,3875.9,3875.6,3.8130303]
[1760806645085,0.002,3875.9,3875.6,3.8130303]
[1760806645708,0.002,3875.9,3875.6,3.8140303]
[1760806649324,0.1308,3875.9,3875.6,3.8140303]
[1760806650624,0.1308,3875.9,3875.6,0.001]
[1760806652511,0.17577358,3875.9,3875.6,0.001]
[1760806658430,0.17577358,3875.9,3875.7,0.4663]
[1760806659029,0.17577358,3875.9,3875.6,0.001]
[1760806659331,0.17577358,3875.9,3875.6,0.4673]
[1760806663335,0.17577358,3875.9,3875.6,0.001]
[1760806664222,0.62413594,3875.9,3875.6,0.001]
[1760806665797,0.17577358,3875.9,3875.6,0.001]
[1760806674645,0.04697358,3875.9,3875.6,0.001]
[1760806674838,0.1288,3875.7,3875.6,0.001]
[1760806675920,0.1308,3875.7,3875.6,0.001]
[1760806676327,0.1288,3875.7,3875.6,0.001]
[1760806676823,0.7644,3875.7,3875.6,0.001]
[1760806677365,3.34457906,3875.7,3875.6,0.001]
[1760806677537,5.07257906,3875.7,3875.6,0.001]
[1760806679144,14.0025116,3875.7,3875.6,0.001]
[1760806679322,9.6955706,3875.7,3875.6,0.001]
[1760806679839,5.1175586,3875.7,3875.6,0.001]
[1760806680040,7.9621796,3875.7,3875.6,0.001]
[1760806680542,8.67629606,3875.7,3875.6,0.001]
[1760806680742,7.88177306,3875.7,3875.6,0.001]
[1760806680935,5.52032706,3875.7,3875.6,0.001]
[1760806684586,7.74350106,3875.7,3875.6,0.001]
[1760806684881,5.52032706,3875.7,3875.6,0.001]
[1760806685063,7.99270506,3875.7,3875.6,0.001]
[1760806685371,5.52032706,3875.7,3875.6,0.001]
[1760806685538,9.16501206,3875.7,3875.6,0.001]
[1760806685744,5.52032706,3875.7,3875.6,0.001]
[1760806685944,7.62440006,3875.7,3875.6,0.001]
[1760806686642,8.61787606,3875.7,3875.6,0.001]
[1760806686874,5.52032706,3875.7,3875.6,0.001]
[1760806689741,10.22394639,3875.7,3875.6,0.001]
[1760806692382,10.22394639,3875.7,3875.2,0.001]
[1760806692383,13.09779071,3875.3,3875.2,0.001]
[1760806692686,12.06279071,3875.3,3875.2,0.001]
[1760806692848,12.45346971,3875.3,3875.2,0.001]
[1760806693074,9.64566471,3875.3,3875.2,0.001]
[1760806693644,15.16854371,3875.3,3875.2,0.001]
[1760806694056,15.18791671,3875.3,3875.2,0.001]
[1760806695040,15.75756071,3875.3,3875.2,0.001]
[1760806695246,15.80254525,3875.3,3875.2,0.001]
[1760806695657,15.90604737,3875.3,3875.2,0.001]
[1760806696279,16.63037037,3875.3,3875.2,0.001]
[1760806696849,16.58538583,3875.3,3875.2,0.001]
[1760806697049,17.49268983,3875.3,3875.2,0.001]
[1760806697882,17.49468983,3875.3,3875.2,0.001]
[1760806698175,26.58335583,3875.3,3875.2,0.001]
[1760806698680,25.49225583,3875.3,3875.2,0.001]
[1760806699077,9.75116683,3875.3,3875.2,0.001]
[1760806699300,18.49356483,3875.3,3875.2,0.001]
[1760806699498,18.53855304,3875.3,3875.2,0.001]
[1760806699796,15.71487504,3875.3,3875.2,0.001]
[1760806700096,2.51009033,3875.3,3875.2,0.001]
[1760806700251,5.09053571,3875.3,3875.2,0.442]
[1760806700455,7.98260971,3875.3,3875.2,0.442]
[1760806700872,7.77882571,3875.3,3875.2,0.442]
[1760806701081,5.09053571,3875.3,3875.2,0.442]
[1760806703065,4.98703359,3875.3,3875.2,0.442]
[1760806704877,1.77298821,3875.3,3875.2,0.442]
[1760806709059,1.77298821,3875.3,3875.2,0.001]
[1760806709403,4.35343359,3875.3,3875.2,0.001]
[1760806711898,4.98703359,3875.3,3875.2,0.001]
[1760806712103,10.05709359,3875.3,3875.2,0.001]
[1760806712264,8.77459359,3875.3,3875.2,0.001]
[1760806712982,11.96811759,3875.3,3875.2,0.001]
[1760806713970,5.21473359,3875.3,3875.2,0.001]
[1760806714163,11.95795559,3875.3,3875.2,0.001]
[1760806715197,11.95745459,3875.3,3875.2,0.001]
[1760806716276,12.33222459,3875.3,3875.2,0.001]
[1760806716698,12.28723638,3875.3,3875.2,0.001]
[1760806717270,12.57611338,3875.3,3875.2,0.001]
[1760806718167,5.16974538,3875.3,3875.2,0.001]
[1760806718368,11.26840738,3875.3,3875.2,0.001]
[1760806718978,8.55167838,3875.3,3875.2,0.001]
[1760806719383,9.96533038,3875.3,3875.2,0.001]
[1760806719575,8.74746638,3875.3,3875.2,0.001]
[1760806719781,8.79245216,3875.3,3875.2,0.001]
[1760806720400,10.58269916,3875.3,3875.2,0.001]
[1760806720898,10.03573916,3875.3,3875.2,0.001]
[1760806721409,10.13886916,3875.3,3875.2,0.001]
[1760806722481,10.59299416,3875.3,3875.2,0.001]
[1760806723522,12.07077316,3875.3,3875.2,0.001]
[1760806724505,5.21473116,3875.3,3875.2,0.001]
[1760806724673,12.39063416,3875.3,3875.2,0.001]
[1760806724878,11.15483416,3875.3,3875.2,0.001]
[1760806725600,11.01978116,3875.3,3875.2,0.001]
[1760806726386,10.21094138,3875.3,3875.2,0.001]
[1760806726588,12.45374938,3875.3,3875.2,0.001]
[1760806727109,12.45174938,3875.3,3875.2,0.001]